bitfinex/quotes_BTCUSD_20250114
["timestamp","ask_amount","ask_price","bid_price","bid_amount"]
[1736876138542,0.00632,95882.0,95881.0,0.208591]
[1736876138792,0.00646945,95882.0,95881.0,0.258191]
[1736876139233,0.00014945,95882.0,95881.0,0.258191]
[1736876140497,0.00014945,95882.0,95881.0,0.0496]
[1736876140912,0.00014945,95882.0,95881.0,0.03659998]
[1736876141112,0.00014945,95882.0,95881.0,0.03864287]
[1736876141583,0.00014945,95882.0,95881.0,0.03764281]
[1736876142148,0.00014945,95882.0,95881.0,0.03864281]
[1736876143144,0.00014945,95882.0,95881.0,0.03759998]
[1736876143363,0.00194391,95882.0,95881.0,0.03764273]
[1736876143579,0.00194391,95882.0,95881.0,0.03864273]
[1736876143995,0.00194391,95882.0,95881.0,0.03764273]
[1736876144541,0.00194391,95882.0,95881.0,0.03864273]
[1736876144738,0.00194391,95882.0,95881.0,0.03759998]
[1736876144921,0.00194391,95882.0,95881.0,0.001]
[1736876145564,0.00194391,95882.0,95881.0,0.209591]
[1736876145951,0.00194391,95882.0,95881.0,0.001]
[1736876146409,0.00624302,95882.0,95881.0,0.208591]
[1736876146616,0.00194391,95882.0,95881.0,0.208591]
[1736876146814,0.00294391,95882.0,95881.0,0.28803379]
[1736876147069,0.00194391,95882.0,95881.0,0.286991]
[1736876147520,0.00994391,95882.0,95881.0,0.286991]
[1736876147744,0.00394391,95882.0,95881.0,0.286991]
[1736876147937,0.00194391,95882.0,95881.0,0.286991]
[1736876148187,0.00194391,95882.0,95881.0,0.287991]
[1736876148942,0.00194391,95882.0,95881.0,0.001]
[1736876149536,0.00294391,95882.0,95881.0,0.001]
[1736876149741,0.00294391,95882.0,95879.0,0.19559498]
[1736876149939,0.00632,95881.0,95879.0,0.19559498]
[1736876150146,0.00632,95881.0,95875.0,0.417208]
[1736876150378,0.00632,95881.0,95875.0,0.208604]
[1736876150747,0.00632,95881.0,95872.0,0.01209609]
[1736876150748,0.00632,95881.0,95880.0,0.208594]
[1736876151162,0.00732,95881.0,95880.0,0.208594]
[1736876151380,0.00632,95881.0,95880.0,0.208594]
[1736876152563,0.00194391,95882.0,95880.0,0.20963689]
[1736876152772,0.00194391,95882.0,95881.0,0.07944282]
[1736876154347,0.00194391,95882.0,95881.0,0.0784]
[1736876154560,0.00294391,95882.0,95881.0,0.0804]
[1736876154761,0.00294391,95882.0,95881.0,0.06739998]
[1736876155345,0.00294391,95882.0,95881.0,0.0684428]
[1736876155756,0.00194391,95882.0,95881.0,0.0684428]
[1736876155952,0.00194391,95882.0,95881.0,0.0664428]
[1736876156272,0.00194391,95882.0,95881.0,0.0684428]
[1736876156637,0.00194391,95882.0,95881.0,0.0664428]
[1736876157244,0.00194391,95882.0,95881.0,0.001]
[1736876157674,0.00194391,95882.0,95880.0,0.2094481]
[1736876157675,0.00194391,95882.0,95880.0,0.0008541]
[1736876157880,0.00194391,95882.0,95881.0,0.208591]
[1736876158195,0.00194391,95882.0,95880.0,0.0008541]
[1736876158636,0.00435404,95881.0,95880.0,0.0008541]
[1736876159037,0.00194391,95882.0,95880.0,0.0008541]
[1736876159288,0.00194391,95882.0,95881.0,0.001]
[1736876159665,0.21487219,95882.0,95871.0,0.208613]
[1736876159865,0.00194391,95882.0,95871.0,0.208613]
[1736876160077,0.00434645,95881.0,95871.0,0.208613]
[1736876160297,0.00194391,95882.0,95872.0,0.208611]
[1736876160512,0.00394391,95882.0,95878.0,0.208596]
[1736876160792,0.00294391,95882.0,95881.0,0.023]
[1736876160993,0.00294391,95882.0,95881.0,0.17816967]
[1736876161231,0.00494391,95882.0,95881.0,0.17816967]
[1736876161415,0.00294391,95882.0,95881.0,0.17816967]
[1736876162074,0.00294391,95882.0,95881.0,0.32816967]
[1736876162287,9.1e-07,95882.0,95881.0,0.43873246]
[1736876162715,0.00179319,95912.0,95911.0,0.208526]
[1736876162930,0.00194261,95912.0,95911.0,0.208526]
[1736876163160,0.00194261,95912.0,95911.0,0.20956851]
[1736876163983,0.00294261,95912.0,95911.0,0.20956851]
[1736876164159,0.00294261,95912.0,95911.0,0.21156851]
[1736876165135,0.00294261,95912.0,95911.0,0.22372333]
[1736876165333,0.00294261,95912.0,95911.0,0.22268082]
[1736876166089,0.00294261,95912.0,95911.0,0.34990774]
[1736876167509,0.00294261,95912.0,95911.0,0.59990774]
[1736876168505,0.00294261,95912.0,95911.0,0.67540774]
[1736876168736,0.00294261,95912.0,95911.0,0.67340774]
[1736876168983,0.208438,95952.0,95914.0,0.1]
[1736876169209,0.00632,95962.0,95929.0,0.454547]
[1736876169402,0.00632,95962.0,95929.0,0.60577392]
[1736876169608,0.00632,95961.0,95929.0,0.60577392]
[1736876169815,0.00632,95961.0,95929.0,0.5927739]
[1736876170032,6.958302,95930.0,95929.0,0.6927739]
[1736876170235,6.895755,95930.0,95929.0,0.6927739]
[1736876170590,6.895755,95930.0,95929.0,0.71341279]
[1736876171002,6.895755,95930.0,95929.0,0.72486052]
[1736876171303,6.854057,95930.0,95929.0,0.72486052]
[1736876171520,6.79151,95930.0,95929.0,0.73286052]
[1736876171707,6.79251,95930.0,95929.0,0.73286052]
[1736876171902,6.749812,95930.0,95929.0,0.72686052]
[1736876172303,6.71367592,95930.0,95929.0,0.73386052]
[1736876172642,6.71467592,95930.0,95929.0,0.73986052]
[1736876173007,6.71467592,95930.0,95929.0,0.63986052]
[1736876173408,0.002,95930.0,95929.0,0.63986052]
[1736876174643,0.002,95930.0,95929.0,0.73986052]
[1736876174845,0.00179277,95970.0,95940.0,0.1755]
[1736876175062,0.00179277,95970.0,95969.0,0.2084]
[1736876175263,0.00229106,95970.0,95969.0,0.2084]
[1736876175464,0.00229106,95970.0,95969.0,0.20944188]
[1736876175919,0.00429106,95970.0,95969.0,0.20944188]
[1736876176541,0.00229106,95970.0,95969.0,0.20944188]
[1736876176988,0.00229106,95970.0,95967.0,0.208404]
[1736876177155,0.00529106,95970.0,95966.0,0.208406]
[1736876177397,0.00229106,95970.0,95967.0,0.20944596]
[1736876177806,0.00229106,95970.0,95969.0,0.001]
[1736876178012,0.00329106,95970.0,95969.0,0.23244182]
[1736876178231,0.00329106,95970.0,95969.0,0.2084]
[1736876178406,0.00529106,95970.0,95969.0,0.2084]
[1736876178812,0.00229106,95970.0,95969.0,0.2084]
[1736876179607,0.00229106,95970.0,95969.0,0.21044186]
[1736876179813,0.00229106,95970.0,95969.0,0.19744184]
[1736876180014,0.00229106,95970.0,95969.0,0.32466876]
[1736876180192,0.00229106,95970.0,95969.0,0.6044269]
[1736876180373,0.00229106,95970.0,95969.0,0.7044269]
[1736876180374,6e-08,95970.0,95969.0,0.7044269]
[1736876180577,0.0004,95989.0,95983.0,0.1]
[1736876180781,0.00179235,96001.0,95988.0,0.458359]
[1736876180992,0.00179235,96001.0,96000.0,0.358333]
[1736876181354,0.00179235,96001.0,96000.0,0.66715992]
[1736876181896,0.03750393,96004.0,96003.0,0.2]
[1736876182136,1.2e-07,96008.0,96007.0,0.273]
[1736876182264,1.2e-07,96008.0,96007.0,0.27722692]
[1736876182467,1.2e-07,96008.0,96007.0,0.37722692]
[1736876184102,1.2e-07,96008.0,96007.0,0.38622692]
[1736876184255,0.00100012,96008.0,96007.0,0.38622692]
[1736876184454,0.00100012,96008.0,96007.0,0.37722692]
[1736876184661,0.00200012,96008.0,96007.0,0.38522692]
[1736876185164,1.2e-07,96008.0,96007.0,0.38222692]
[1736876185376,0.00100012,96008.0,96007.0,0.39122692]
[1736876185575,0.00100012,96008.0,96007.0,0.38622692]
[1736876185788,0.00100012,96008.0,96007.0,0.39022692]
[1736876186193,1.2e-07,96008.0,96007.0,0.49022692]
[1736876186642,0.0004,96029.0,96022.0,0.15]
[1736876186846,0.5790389,96008.0,96007.0,0.765918]
[1736876187070,0.5790389,96008.0,96007.0,0.87014492]
[1736876187245,0.58611777,96008.0,96007.0,0.86114492]
[1736876187452,0.5780389,96008.0,96007.0,0.86114492]
[1736876187762,0.58726357,96008.0,96007.0,0.86614492]
[1736876189008,0.58726357,96008.0,96007.0,1.02014492]
[1736876189184,0.58726357,96008.0,96007.0,0.87014492]
[1736876189402,0.58726357,96008.0,96007.0,0.86614492]
[1736876189651,0.58726357,96008.0,96007.0,0.86914492]
[1736876189854,0.58726357,96008.0,96007.0,0.32454492]
[1736876190920,0.58726357,96008.0,96007.0,0.31254492]
[1736876191122,0.58626357,96008.0,96007.0,0.31354492]
[1736876191323,0.58626357,96008.0,96007.0,0.31854492]
[1736876191644,0.58626357,96008.0,96007.0,0.31354492]
[1736876191974,0.58726357,96008.0,96007.0,0.32154492]
[1736876192207,0.58626357,96008.0,96007.0,0.31554492]
[1736876192622,0.58626357,96008.0,96007.0,0.31954492]
[1736876192749,0.58626357,96008.0,96007.0,0.31254492]
[1736876193110,0.58805634,96008.0,96007.0,0.31254492]
[1736876193653,0.48389634,96008.0,96007.0,0.48554492]
[1736876193850,0.44223234,96008.0,96007.0,0.48554492]
[1736876194052,0.37973634,96008.0,96007.0,0.48554492]
[1736876194254,0.37151167,96008.0,96007.0,0.49054492]
[1736876194502,0.36120591,96008.0,96007.0,0.48554492]
[1736876194674,0.36943494,96008.0,96007.0,0.48654492]
[1736876194882,0.37043494,96008.0,96007.0,0.49454492]
[1736876195084,0.37043494,96008.0,96007.0,0.49354492]
[1736876195283,0.24628798,96008.0,96007.0,0.48554492]
[1736876195492,0.00179193,96066.0,96062.0,0.208198]
[1736876195765,0.00179193,96066.0,96062.0,0.31242492]
[1736876196384,0.00179193,96066.0,96062.0,0.32416986]
[1736876196972,0.10014925,96063.0,96062.0,0.32416986]
[1736876197834,0.10014925,96063.0,96062.0,0.32716986]
[1736876198232,0.10014925,96063.0,96062.0,0.32616986]
[1736876198564,0.10014925,96063.0,96062.0,0.33416986]
[1736876198751,0.10014925,96063.0,96062.0,0.33216986]
[1736876198898,0.10014925,96063.0,96062.0,0.32416986]
[1736876199109,0.10014925,96063.0,96062.0,0.32516986]
[1736876199760,0.10014925,96063.0,96062.0,0.33016986]
[1736876199951,0.041692,96163.0,96062.0,0.42577186]
[1736876199952,0.0325964,96095.0,96062.0,0.42577186]
[1736876200155,0.03309379,96095.0,96094.0,0.208129]
[1736876200520,0.1,96093.0,96070.0,0.20644203]
[1736876200734,0.01677348,96095.0,96081.0,0.208156]
[1736876200735,0.1,96091.0,96081.0,0.208156]
[1736876201301,0.1,96091.0,96081.0,0.416312]
[1736876201456,0.1,96091.0,96081.0,0.208156]
[1736876202177,0.00540723,96090.0,96082.0,0.208155]
[1736876202383,0.1,96085.0,96077.0,0.208164]
[1736876202587,0.1,96085.0,96081.0,0.001]
[1736876202785,0.0053845,96084.0,96081.0,0.001]
[1736876202994,0.0053845,96084.0,96077.0,0.208164]
[1736876203165,0.1053845,96084.0,96073.0,0.208174]
[1736876203364,0.1,96081.0,96073.0,0.208174]
[1736876203804,0.00536648,96080.0,96073.0,0.208174]
[1736876204328,0.1,96081.0,96073.0,0.208174]
[1736876204590,0.1,96073.0,96062.0,0.208198]
[1736876204885,0.1,96057.0,96044.0,0.01175274]
[1736876205112,0.20628,96056.0,96045.0,0.00104103]
[1736876205361,0.20628,96056.0,96047.0,0.208231]
[1736876205362,0.1,96054.0,96047.0,0.208231]
[1736876205616,0.1,96054.0,96051.0,0.208222]
[1736876205839,0.11158182,96056.0,96051.0,0.208222]
[1736876205840,0.0052958,96053.0,96051.0,0.208222]
[1736876206067,0.1,96054.0,96051.0,0.208222]
[1736876206308,0.00529379,96052.0,96051.0,0.20837125]
[1736876206537,0.1,96054.0,96051.0,0.00014925]
[1736876206769,0.00529379,96052.0,96051.0,0.00014925]
[1736876206991,0.101,96054.0,96051.0,0.00014925]
[1736876207136,0.00529379,96052.0,96051.0,0.00014925]
[1736876207339,0.001,96054.0,96051.0,0.00014925]
[1736876207340,0.101,96054.0,96051.0,0.20837125]
[1736876207552,0.101,96054.0,96051.0,0.00014925]
[1736876207752,0.0052958,96053.0,96051.0,0.00014925]
[1736876207954,0.0052958,96053.0,96051.0,0.20837125]
[1736876208639,0.001,96054.0,96051.0,0.20837125]
[1736876208815,0.00529379,96052.0,96051.0,0.20837125]
[1736876208957,0.00516843,96052.0,96051.0,0.20837125]
[1736876209529,0.10628,96056.0,96051.0,0.20837125]
[1736876209727,0.00527892,96055.0,96051.0,0.20837125]
[1736876210402,0.00527892,96055.0,96051.0,0.41659325]
[1736876210566,0.00527892,96055.0,96051.0,0.52082017]
[1736876210724,0.1,96067.0,96058.0,0.208206]
[1736876210923,0.0818,96077.0,96052.0,0.10526792]
[1736876210924,0.00523374,96066.0,96065.0,0.208191]
[1736876211173,0.0818,96077.0,96051.0,0.01185111]
[1736876211174,0.1,96061.0,96051.0,0.01185111]
[1736876211403,0.00732114,96070.0,96051.0,0.00014925]
[1736876211404,0.1,96056.0,96051.0,0.00014925]
[1736876211830,0.1,96052.0,96051.0,0.00014925]
[1736876212249,0.35522733,96052.0,96051.0,0.00014925]
[1736876212480,0.43702733,96052.0,96051.0,0.00014925]
[1736876213250,0.54225425,96052.0,96051.0,0.00014925]
[1736876214614,0.54225425,96052.0,96051.0,0.00114925]
[1736876214615,0.54725425,96052.0,96051.0,0.00114925]
[1736876214840,0.54725425,96052.0,96025.0,0.208277]
[1736876214841,0.208224,96050.0,96025.0,0.19746751]
[1736876215044,0.308245,96041.0,96025.0,0.40470423]
[1736876215201,0.1,96037.0,96030.0,0.208267]
[1736876215649,0.00520323,96036.0,96031.0,0.208266]
[1736876215843,0.1,96037.0,96031.0,0.208266]
[1736876216054,0.1,96037.0,96033.0,0.0008526]
[1736876216605,0.00520881,96036.0,96033.0,0.0008526]
[1736876217989,0.1,96034.0,96033.0,0.0008526]
[1736876218354,0.1052048,96034.0,96033.0,0.0008526]
[1736876218489,0.0052048,96034.0,96033.0,0.0008526]
[1736876218922,0.002,96036.0,96033.0,0.0008526]
[1736876218923,0.002,96036.0,96034.0,0.208259]
[1736876219125,0.10628,96044.0,96034.0,0.20930017]
[1736876219281,0.10628,96044.0,96034.0,0.00104117]
[1736876219481,0.1,96035.0,96033.0,0.0008526]
[1736876219747,0.00520078,96034.0,96033.0,0.0008526]
[1736876220114,0.00520078,96034.0,96013.0,0.15]
[1736876220323,0.1,96035.0,96029.0,0.208268]
[1736876220517,0.1,96040.0,96029.0,0.208268]
[1736876220740,0.002,96034.0,96020.0,0.2063696]
[1736876220919,0.1,96035.0,96028.0,0.20827]
[1736876221127,0.00514603,96034.0,96028.0,0.20827]
[1736876221334,0.00714603,96034.0,96028.0,0.20827]
[1736876221519,0.1,96035.0,96028.0,0.20827]
[1736876221723,0.001,96034.0,96028.0,0.20827]
[1736876221923,0.003,96034.0,96028.0,0.20827]
[1736876222141,0.1,96035.0,96028.0,0.20827]
[1736876222386,0.1,96035.0,96014.0,0.00772625]
[1736876222387,0.1,96026.0,96014.0,0.00772625]
[1736876222601,0.1,96020.0,96014.0,0.00772625]
[1736876222807,0.1,96016.0,96014.0,0.00772625]
[1736876223277,0.00513237,96015.0,96014.0,0.00772625]
[1736876223542,0.00513237,96015.0,96014.0,0.21602825]
[1736876223794,0.1,96026.0,96011.0,0.00014928]
[1736876224038,0.00510824,96015.0,96014.0,0.001]
[1736876224263,0.1,96030.0,96015.0,0.4166]
[1736876224519,0.1,96030.0,96016.0,0.10526824]
[1736876224671,0.00511827,96029.0,96016.0,0.10526824]
[1736876224901,0.00511827,96029.0,96028.0,0.208272]
[1736876225311,0.1,96041.0,96019.0,0.2063696]
[1736876225514,0.002,96030.0,96020.0,0.10526817]
[1736876225713,0.003,96030.0,96029.0,0.20827]
[1736876225873,0.003,96030.0,96029.0,0.20931122]
[1736876226080,0.002,96030.0,96029.0,0.20931122]
[1736876226927,0.002,96041.0,96039.0,0.208247]
[1736876227134,0.1,96039.0,96031.0,0.0010412]
[1736876227373,0.00508982,96038.0,96022.0,0.00104122]
[1736876227666,0.00508982,96038.0,96033.0,0.208261]
[1736876228086,0.00508982,96038.0,96037.0,0.208253]
[1736876228318,0.00508982,96038.0,96037.0,0.31352099]
[1736876228552,0.2,96054.0,96048.0,0.208227]
[1736876228751,0.1,96053.0,96048.0,0.208227]
[1736876229275,0.00518177,96052.0,96045.0,0.208234]
[1736876229515,0.1,96047.0,96037.0,0.01122205]
[1736876229757,0.1,96047.0,96033.0,0.20826]
[1736876229758,0.00179089,96038.0,96030.0,0.00772301]
[1736876230060,0.00179089,96038.0,96034.0,0.208257]
[1736876230304,0.00537285,96037.0,96030.0,0.01899083]
[1736876230543,0.00179089,96038.0,96030.0,0.21599101]
[1736876230777,0.0051333,96036.0,96034.0,0.208257]
[1736876231002,0.00511722,96037.0,96034.0,0.208257]
[1736876231229,0.0051132,96035.0,96034.0,0.208257]
[1736876231462,0.00279089,96038.0,96034.0,0.208257]
[1736876231703,0.0051132,96035.0,96034.0,0.208257]
[1736876231898,0.001,96037.0,96034.0,0.208257]
[1736876232175,0.00511723,96035.0,96034.0,0.208257]
[1736876232381,0.00511923,96036.0,96034.0,0.208257]
[1736876232633,0.00179089,96038.0,96034.0,0.208257]
[1736876232634,0.00511723,96035.0,96034.0,0.208257]
[1736876233072,0.00279089,96038.0,96034.0,0.208257]
[1736876233330,0.00511723,96035.0,96034.0,0.208257]
[1736876233536,0.00279089,96038.0,96030.0,0.01102891]
[1736876233781,0.00279089,96038.0,96035.0,0.208256]
[1736876234045,0.00279089,96038.0,96037.0,0.208253]
[1736876234287,0.00279089,96038.0,96037.0,0.20929412]
[1736876234782,0.00179089,96038.0,96037.0,0.20929412]
[1736876235553,0.00179089,96038.0,96037.0,0.003]
[1736876235800,0.00179089,96038.0,96037.0,0.004]
[1736876236291,0.00690563,96038.0,96037.0,0.004]
[1736876236534,0.10179089,96038.0,96037.0,0.004]
[1736876236768,0.10690694,96038.0,96037.0,0.004]
[1736876236966,0.20690694,96038.0,96037.0,0.004]
[1736876237145,0.20690694,96038.0,96037.0,0.003]
[1736876237372,0.1,96036.0,96020.0,0.21961687]
[1736876237647,0.1,96016.0,96010.0,0.0032928]
[1736876237888,0.1,96016.0,96011.0,0.01941647]
[1736876238125,0.00470835,96015.0,96011.0,0.02718198]
[1736876238993,0.00470835,96015.0,96011.0,0.00776551]
[1736876239194,0.00470835,96015.0,96011.0,0.001]
[1736876239708,0.1,96016.0,96011.0,0.001]
[1736876239905,0.00470634,96014.0,96011.0,0.001]
[1736876240148,0.00470835,96015.0,96011.0,0.001]
[1736876240383,0.00470433,96013.0,96011.0,0.001]
[1736876240579,0.1,96016.0,96011.0,0.003]
[1736876240580,0.00470634,96014.0,96011.0,0.003]
[1736876240816,0.1,96016.0,96012.0,0.208307]
[1736876241021,0.00628,96018.0,96011.0,0.001]
[1736876241145,0.001,96014.0,96011.0,0.001]
[1736876241378,0.001,96014.0,96012.0,0.20934845]
[1736876241584,0.001,96013.0,96012.0,0.20934845]
[1736876241991,0.1,96012.0,96010.0,0.00344208]
[1736876242195,0.2,96021.0,96010.0,0.21175108]
[1736876242500,0.1,96012.0,96010.0,0.00344208]
[1736876242759,0.1,96012.0,96011.0,0.0008528]
[1736876243740,0.11,96012.0,96011.0,0.0008528]
[1736876243998,0.1,96014.0,96011.0,0.0008528]
[1736876244402,0.001,96012.0,96011.0,0.0008528]
[1736876244771,0.101,96012.0,96005.0,0.20083527]
[1736876244969,0.1,96014.0,96008.0,0.208314]
[1736876245173,0.101,96012.0,96008.0,0.208314]
[1736876245376,0.1,96012.0,96003.0,0.208325]
[1736876245820,0.103,96012.0,96007.0,0.208317]
[1736876247061,0.104,96012.0,96007.0,0.208317]
[1736876247242,0.101,96012.0,96003.0,0.208325]
[1736876247445,0.1,96012.0,96006.0,0.208318]
[1736876247604,0.103,96012.0,96003.0,0.208325]
[1736876247811,0.103,96012.0,95990.0,0.13762406]
[1736876247812,0.1,96006.0,95994.0,0.208344]
[1736876248020,0.1,96006.0,95985.0,0.01243149]
[1736876248021,0.1,95995.0,95985.0,0.01243149]
[1736876248228,0.1,95993.0,95986.0,0.208363]
[1736876248431,0.1,95993.0,95987.0,0.208361]
[1736876248844,0.1,95992.0,95985.0,0.01243149]
[1736876249068,0.1,95990.0,95985.0,0.01243149]
[1736876249271,0.1,95990.0,95982.0,0.208371]
[1736876249470,0.1,95990.0,95982.0,0.21938054]
[1736876249883,0.1,95990.0,95982.0,0.42775254]
[1736876250369,0.1,95990.0,95982.0,0.21938054]
[1736876251483,0.1,95992.0,95985.0,0.208364]
[1736876251687,0.001,95990.0,95985.0,0.208364]
[1736876251914,0.001,95990.0,95988.0,0.208357]
[1736876252114,0.002,95990.0,95989.0,0.00104164]
[1736876252312,0.001,95990.0,95989.0,0.00104164]
[1736876252515,0.2,96002.0,95989.0,0.00104164]
[1736876252675,0.2,96002.0,95990.0,0.1386657]
[1736876252875,0.2,96002.0,95996.0,0.208341]
[1736876253264,0.30137363,96020.0,95990.0,0.13762406]
[1736876253265,0.1,96012.0,95990.0,0.13762406]
[1736876253500,0.00628,96011.0,96007.0,0.208316]
[1736876253683,0.001,95992.0,95991.0,0.23062692]
[1736876254128,0.1,96007.0,96003.0,0.208326]
[1736876254754,0.1,96007.0,96003.0,0.19532598]
[1736876254958,0.1,96007.0,95999.0,0.208333]
[1736876255170,0.10628,96012.0,96000.0,0.208331]
[1736876255171,0.1,96001.0,96000.0,0.208331]
[1736876255665,0.102,96007.0,96005.0,0.208322]
[1736876255876,0.006,96007.0,96005.0,0.208322]
[1736876256219,0.002,96007.0,96006.0,0.00104146]
[1736876256653,0.09308263,96026.0,96006.0,0.00104146]
[1736876256855,0.00014911,96026.0,96010.0,0.13762406]
[1736876257076,0.1,96019.0,96017.0,0.208294]
[1736876257284,0.1,96022.0,96017.0,0.208294]
[1736876257857,0.1,96019.0,96017.0,0.208294]
[1736876258064,0.1,96022.0,96017.0,0.208294]
[1736876258262,0.00114911,96026.0,96017.0,0.001]
[1736876258468,0.00114911,96026.0,96024.0,0.208279]
[1736876259587,0.00314911,96026.0,96024.0,0.208279]
[1736876259765,0.00214911,96026.0,96024.0,0.208279]
[1736876260561,0.00214911,96026.0,96025.0,0.00104133]
[1736876260775,0.00214911,96026.0,96025.0,0.40466818]
[1736876260923,0.00114911,96026.0,96025.0,0.40362692]
[1736876261293,0.00114911,96026.0,96025.0,0.4110287]
[1736876261509,0.00014911,96026.0,96025.0,0.43041352]
[1736876262479,0.00114911,96026.0,96025.0,0.43741352]
[1736876262713,0.00179089,96038.0,96037.0,0.288453]
[1736876262947,0.29308263,96070.0,96037.0,0.288453]
[1736876262948,0.09308263,96070.0,96069.0,0.208183]
[1736876263149,0.09358042,96070.0,96069.0,0.208183]
[1736876263528,0.00049779,96070.0,96069.0,0.208183]
[1736876263934,0.00049779,96070.0,96069.0,0.2092238]
[1736876264132,0.00049779,96070.0,96069.0,0.208183]
[1736876264316,0.00049779,96070.0,96069.0,0.2092238]
[1736876264883,0.00049779,96070.0,96069.0,0.2206073]
[1736876265131,0.00049779,96070.0,96069.0,0.2205665]
[1736876266678,0.00049779,96070.0,96069.0,0.001]
[1736876268061,0.00049779,96070.0,96069.0,0.0020408]
[1736876268714,0.00049779,96070.0,96069.0,0.15416772]
[1736876268841,0.00049779,96070.0,96069.0,0.17716772]
[1736876270050,0.00049779,96070.0,96069.0,0.19757598]
[1736876270656,0.00049779,96070.0,96069.0,0.20157598]
[1736876270875,0.00049779,96070.0,96069.0,0.15612692]
[1736876271079,0.00049779,96070.0,96069.0,0.15716762]
[1736876271278,0.00049779,96070.0,96069.0,0.16616762]
[1736876271987,0.00049779,96070.0,96069.0,0.33016762]
[1736876272185,0.00049779,96070.0,96069.0,0.32912692]
[1736876272385,0.00049779,96070.0,96069.0,0.012]
[1736876272647,0.00049779,96070.0,96069.0,0.00104077]
[1736876273162,0.00049779,96070.0,96069.0,0.01304077]
[1736876273387,0.00049779,96070.0,96069.0,0.009]
[1736876273578,0.00049779,96070.0,96069.0,0.01004078]
[1736876273813,0.00049779,96070.0,96069.0,0.009]
[1736876273989,0.00049779,96070.0,96069.0,0.01004078]
[1736876274346,0.00049779,96070.0,96069.0,0.00104078]
[1736876274554,0.00049779,96070.0,96069.0,0.00204078]
[1736876275336,0.00049779,96070.0,96069.0,0.00604078]
[1736876275555,0.00049779,96070.0,96069.0,0.00204078]
[1736876275959,0.00049779,96070.0,96069.0,0.00404078]
[1736876277145,0.10049779,96070.0,96069.0,0.003]
[1736876277812,0.10049779,96070.0,96069.0,0.002]
[1736876277992,0.00049779,96070.0,96069.0,0.002]
[1736876278190,0.00228888,96070.0,96068.0,0.208183]
[1736876278730,0.00628888,96070.0,96068.0,0.208183]
[1736876279164,0.00728888,96070.0,96068.0,0.208183]
[1736876279333,0.00428888,96070.0,96068.0,0.208183]
[1736876279945,0.00228888,96070.0,96068.0,0.208183]
[1736876280914,0.00228888,96070.0,96068.0,0.209183]
[1736876282405,0.00228888,96070.0,96068.0,0.208183]
[1736876283056,0.00228888,96070.0,96069.0,0.0010408]
[1736876283461,0.00228888,96070.0,96069.0,0.12722692]
[1736876283621,0.00228888,96070.0,96069.0,0.12826772]
[1736876284743,0.00228888,96070.0,96069.0,0.13226772]
[1736876284945,0.00228888,96070.0,96069.0,0.13326772]
[1736876286325,0.00228888,96070.0,96069.0,0.13226772]
[1736876286667,0.00228888,96070.0,96069.0,0.13326772]
[1736876288717,0.00228888,96070.0,96069.0,0.005]
[1736876288885,0.00228888,96070.0,96069.0,0.0243323]
[1736876289119,0.00228888,96070.0,96069.0,0.30259999]
[1736876289334,0.00228888,96070.0,96069.0,0.30155922]
[1736876289524,0.00228888,96070.0,96069.0,0.38345922]
[1736876290109,0.00228888,96070.0,96069.0,0.38245922]
[1736876290693,0.00228888,96070.0,96069.0,0.39020804]
[1736876290893,0.00228888,96070.0,96069.0,0.38620804]
[1736876291428,0.00228888,96070.0,96069.0,0.38720804]
[1736876292069,0.00228888,96070.0,96069.0,0.38620804]
[1736876292227,0.00228888,96070.0,96069.0,0.40260616]
[1736876292839,0.00228888,96070.0,96069.0,0.39860616]
[1736876293579,0.00228888,96070.0,96069.0,0.40060616]
[1736876294183,0.00228888,96070.0,96069.0,0.40660616]
[1736876294387,0.00228888,96070.0,96069.0,0.40060616]
[1736876294537,0.00228888,96070.0,96069.0,0.39860616]
[1736876294886,0.00228888,96070.0,96069.0,0.40760616]
[1736876295303,0.00228888,96070.0,96069.0,0.13037924]
[1736876295518,0.00228888,96070.0,96069.0,0.04847924]
[1736876296155,0.00228888,96070.0,96069.0,0.04952004]
[1736876297426,0.00228888,96070.0,96069.0,0.03608112]
[1736876297984,0.10228888,96070.0,96069.0,0.03608112]
[1736876298368,0.10228888,96070.0,96069.0,0.03408112]
[1736876298369,0.20755694,96070.0,96069.0,0.03408112]
[1736876298564,0.2065158,96070.0,96069.0,0.02708112]
[1736876298773,0.10228888,96070.0,96069.0,0.0203323]
[1736876298978,0.10228888,96070.0,96069.0,0.001]
[1736876299180,0.10228888,96070.0,96065.0,0.20819]
[1736876299426,0.00228888,96070.0,96066.0,0.20819]
[1736876299575,0.00228888,96070.0,96066.0,0.41638]
[1736876299772,0.00228888,96070.0,96066.0,0.20819]
[1736876299967,0.00228888,96070.0,96066.0,0.416379]
[1736876300174,0.00428888,96070.0,96062.0,0.21915962]
[1736876300398,0.00428888,96070.0,96067.0,0.208187]
[1736876300602,0.00428888,96070.0,96069.0,0.001]
[1736876300603,0.01028888,96070.0,96069.0,0.001]
[1736876300816,0.00228888,96070.0,96064.0,0.208194]
[1736876301227,0.1,96068.0,96064.0,0.208194]
[1736876301467,0.00228888,96070.0,96068.0,0.208184]
[1736876302003,0.00228888,96070.0,96068.0,0.2092248]
[1736876302422,0.00228888,96070.0,96069.0,0.20946772]
[1736876302778,0.00228888,96070.0,96069.0,0.22887138]
[1736876302979,0.00228888,96070.0,96069.0,0.22783058]
[1736876303796,0.00228888,96070.0,96069.0,0.23559068]
[1736876304183,0.00228888,96070.0,96069.0,0.23759068]
[1736876304560,0.00228888,96070.0,96069.0,0.23659068]
[1736876304966,0.00228888,96085.0,96069.0,0.23759068]
[1736876305185,0.00243809,96085.0,96070.0,0.02404071]
[1736876305393,0.00228888,96082.0,96070.0,0.00104071]
[1736876305605,0.00243809,96085.0,96084.0,0.208151]
[1736876306730,0.00343809,96085.0,96084.0,0.208151]
[1736876307315,0.00443809,96085.0,96084.0,0.208151]
[1736876307572,0.00343809,96085.0,96077.0,0.208166]
[1736876307880,0.00443809,96085.0,96080.0,0.416316]
[1736876308083,0.00443809,96085.0,96084.0,0.208151]
[1736876308289,0.00214921,96085.0,96084.0,0.31341855]
[1736876308493,0.00214921,96085.0,96084.0,0.33537792]
[1736876308697,0.00214921,96085.0,96084.0,0.48537792]
[1736876309111,0.00114921,96085.0,96084.0,0.50475472]